[Event "Titled Tuesday Blitz July 05 Early 2022"]
[White "Koziorowicz, Michal"]
[Black "Jubin Jimmy"]
[WhiteFideId "21809194"]
[BlackFideId "46686614"]
[WhiteElo "2202"]
[BlackElo "2219"]
[Result "0-1"]
[Round "11"]
[TimeControl "180+1"]
[Date "2022.07.05"]
[WhiteClock "0:00:35"]
[BlackClock "0:00:26"]

1. e4 {[%clk 0:03:00]}  c6 {[%clk 0:02:59]} 2. d4 {[%clk 0:03:00]}  d5 {[%clk 0:03:00]} 3. e5 {[%clk 0:03:01]}  c5 {[%clk 0:03:00]} 4. dxc5 {[%clk 0:03:00]}  e6 {[%clk 0:03:00]} 5. a3 {[%clk 0:02:59]}  Bxc5 {[%clk 0:02:59]} 6. Nf3 {[%clk 0:03:00]}  Nd7 {[%clk 0:02:50]} 7. Bd3 {[%clk 0:02:59]}  f6 {[%clk 0:02:49]} 8. exf6 {[%clk 0:02:55]}  Ngxf6 {[%clk 0:02:44]} 9. O-O {[%clk 0:02:55]}  O-O {[%clk 0:02:32]} 10. Nc3 {[%clk 0:02:54]}  Kh8 {[%clk 0:02:29]} 11. Bg5 {[%clk 0:02:53]}  a6 {[%clk 0:02:23]} 12. Qe2 {[%clk 0:02:53]}  Qb6 {[%clk 0:02:12]} 13. Na4 {[%clk 0:02:50]}  Qc6 {[%clk 0:02:12]} 14. Nxc5 {[%clk 0:02:50]}  Nxc5 {[%clk 0:02:12]} 15. Rae1 {[%clk 0:02:48]}  Nfe4 {[%clk 0:02:09]} 16. Be3 {[%clk 0:02:47]}  Qd6 {[%clk 0:01:54]} 17. b4 {[%clk 0:02:45]}  Na4 {[%clk 0:01:42]} 18. Bd4 {[%clk 0:02:42]}  Nf6 {[%clk 0:01:35]} 19. Ne5 {[%clk 0:02:41]}  Bd7 {[%clk 0:01:31]} 20. Qe3 {[%clk 0:02:37]}  Bb5 {[%clk 0:01:27]} 21. Qh3 {[%clk 0:02:32]}  Bxd3 {[%clk 0:01:25]} 22. cxd3 {[%clk 0:02:33]}  Kg8 {[%clk 0:01:23]} 23. Ng4 {[%clk 0:02:27]}  Rae8 {[%clk 0:01:18]} 24. Be5 {[%clk 0:02:17]}  Qd7 {[%clk 0:01:13]} 25. Rc1 {[%clk 0:02:09]}  Nxg4 {[%clk 0:01:09]} 26. Qxg4 {[%clk 0:02:10]}  Rc8 {[%clk 0:01:07]} 27. h4 {[%clk 0:02:09]}  Qf7 {[%clk 0:00:56]} 28. Rxc8 {[%clk 0:02:08]}  Rxc8 {[%clk 0:00:57]} 29. h5 {[%clk 0:02:08]}  h6 {[%clk 0:00:57]} 30. Bd4 {[%clk 0:02:03]}  Nc3 {[%clk 0:00:54]} 31. Re1 {[%clk 0:02:00]}  Nb5 {[%clk 0:00:52]} 32. Be5 {[%clk 0:01:52]}  Rc2 {[%clk 0:00:50]} 33. Qg3 {[%clk 0:01:46]}  Nc3 {[%clk 0:00:47]} 34. Kf1 {[%clk 0:01:15]}  Na2 {[%clk 0:00:42]} 35. Bd4 {[%clk 0:01:10]}  Nc1 {[%clk 0:00:37]} 36. Rxe6 {[%clk 0:01:07]}  Nb3 {[%clk 0:00:27]} 37. Be5 {[%clk 0:00:29]}  Rxf2+ {[%clk 0:00:16]} 38. Qxf2 {[%clk 0:00:26]}  Qxe6 {[%clk 0:00:17]} 39. Bc3 {[%clk 0:00:26]}  Nc1 {[%clk 0:00:14]} 40. Qg3 {[%clk 0:00:24]}  Qe2+ {[%clk 0:00:13]} 41. Kg1 {[%clk 0:00:23]}  Qd1+ {[%clk 0:00:13]} 42. Kh2 {[%clk 0:00:22]}  Qxh5+ {[%clk 0:00:13]} 43. Qh3 {[%clk 0:00:22]}  Qxh3+ {[%clk 0:00:13]} 44. Kxh3 {[%clk 0:00:23]}  Nxd3 {[%clk 0:00:14]} 45. Kg3 {[%clk 0:00:22]}  Kf7 {[%clk 0:00:14]} 46. Kf3 {[%clk 0:00:23]}  g5 {[%clk 0:00:14]} 47. g3 {[%clk 0:00:23]}  Ke6 {[%clk 0:00:14]} 48. Ke3 {[%clk 0:00:23]}  Ne5 {[%clk 0:00:14]} 49. Kd4 {[%clk 0:00:24]}  Kd6 {[%clk 0:00:15]} 50. Ke3 {[%clk 0:00:23]}  Nc6 {[%clk 0:00:15]} 51. a4 {[%clk 0:00:23]}  d4+ {[%clk 0:00:15]} 52. Bxd4 {[%clk 0:00:23]}  Nxd4 {[%clk 0:00:16]} 53. Kxd4 {[%clk 0:00:24]}  h5 {[%clk 0:00:17]} 54. Ke4 {[%clk 0:00:24]}  Ke6 {[%clk 0:00:17]} 55. b5 {[%clk 0:00:24]}  axb5 {[%clk 0:00:17]} 56. axb5 {[%clk 0:00:25]}  b6 {[%clk 0:00:18]} 57. Kd4 {[%clk 0:00:24]}  Kf5 {[%clk 0:00:18]} 58. Ke3 {[%clk 0:00:25]}  Kg4 {[%clk 0:00:18]} 59. Kf2 {[%clk 0:00:25]}  h4 {[%clk 0:00:19]} 60. gxh4 {[%clk 0:00:26]}  Kxh4 {[%clk 0:00:20]} 61. Kg2 {[%clk 0:00:27]}  Kg4 {[%clk 0:00:21]} 62. Kh2 {[%clk 0:00:27]}  Kf4 {[%clk 0:00:21]} 63. Kg2 {[%clk 0:00:28]}  g4 {[%clk 0:00:22]} 64. Kf2 {[%clk 0:00:28]}  g3+ {[%clk 0:00:22]} 65. Kg2 {[%clk 0:00:28]}  Kg4 {[%clk 0:00:23]} 66. Kg1 {[%clk 0:00:29]}  Kf3 {[%clk 0:00:24]} 67. Kf1 {[%clk 0:00:29]}  Ke4 {[%clk 0:00:25]} 68. Kg2 {[%clk 0:00:30]}  Kd4 {[%clk 0:00:26]} 69. Kxg3 {[%clk 0:00:31]}  Kc4 {[%clk 0:00:27]} 70. Kf2 {[%clk 0:00:32]}  Kxb5 {[%clk 0:00:28]} 71. Ke2 {[%clk 0:00:33]}  Kb4 {[%clk 0:00:28]} 72. Kd2 {[%clk 0:00:34]}  Kb3 {[%clk 0:00:28]} 73. Kc1 {[%clk 0:00:34]}  b5 {[%clk 0:00:25]} 74. Kb1 {[%clk 0:00:34]}  b4 {[%clk 0:00:25]} 75. Ka1 {[%clk 0:00:35]}  Kc2 {[%clk 0:00:26]} 76. Ka2 {[%clk 0:00:35]}  b3+ {[%clk 0:00:26]} 0-1


[Site "https://www.chess.com"]

[Event "Titled Tuesday Blitz July 05 Early 2022"]
[White "Maximov, Dmitry"]
[Black "Jones, Gawain C B"]
[WhiteFideId "14105659"]
[BlackFideId "409561"]
[WhiteElo "2494"]
[BlackElo "2657"]
[Result "0-1"]
[Round "11"]
[TimeControl "180+1"]
[Date "2022.07.05"]
[WhiteClock "0:00:04"]
[BlackClock "0:00:03"]

1. e4 {[%clk 0:03:00]}  c5 {[%clk 0:02:59]} 2. Nf3 {[%clk 0:03:00]}  g6 {[%clk 0:02:56]} 3. c3 {[%clk 0:03:00]}  d5 {[%clk 0:02:55]} 4. e5 {[%clk 0:02:57]}  d4 {[%clk 0:02:53]} 5. Bc4 {[%clk 0:02:53]}  Nc6 {[%clk 0:02:53]} 6. O-O {[%clk 0:02:46]}  Bg7 {[%clk 0:02:50]} 7. Re1 {[%clk 0:02:43]}  Nh6 {[%clk 0:02:50]} 8. d3 {[%clk 0:02:38]}  Bg4 {[%clk 0:02:41]} 9. e6 {[%clk 0:02:35]}  O-O {[%clk 0:02:22]} 10. exf7+ {[%clk 0:02:34]}  Nxf7 {[%clk 0:02:18]} 11. Nbd2 {[%clk 0:02:26]}  Ne5 {[%clk 0:02:13]} 12. cxd4 {[%clk 0:01:58]}  Nxc4 {[%clk 0:02:13]} 13. dxc4 {[%clk 0:01:48]}  Ng5 {[%clk 0:01:59]} 14. d5 {[%clk 0:01:39]}  Bd4 {[%clk 0:01:54]} 15. Qb3 {[%clk 0:01:08]}  Bxf3 {[%clk 0:01:51]} 16. Nxf3 {[%clk 0:01:07]}  Nxf3+ {[%clk 0:01:45]} 17. gxf3 {[%clk 0:01:07]}  e5 {[%clk 0:01:38]} 18. Re4 {[%clk 0:00:50]}  Qd7 {[%clk 0:01:33]} 19. Kg2 {[%clk 0:00:48]}  Rf7 {[%clk 0:01:22]} 20. Bh6 {[%clk 0:00:45]}  Qf5 {[%clk 0:01:15]} 21. Rh4 {[%clk 0:00:25]}  e4 {[%clk 0:01:05]} 22. Rxe4 {[%clk 0:00:25]}  Qh5 {[%clk 0:01:05]} 23. Bf4 {[%clk 0:00:23]}  Raf8 {[%clk 0:01:01]} 24. Bg3 {[%clk 0:00:23]}  Rxf3 {[%clk 0:01:00]} 25. Qc2 {[%clk 0:00:18]}  Bxf2 {[%clk 0:00:45]} 26. Bxf2 {[%clk 0:00:11]}  Qh3+ {[%clk 0:00:40]} 27. Kg1 {[%clk 0:00:09]}  Rxf2 {[%clk 0:00:40]} 28. Qxf2 {[%clk 0:00:07]}  Rxf2 {[%clk 0:00:41]} 29. Kxf2 {[%clk 0:00:07]}  Qxh2+ {[%clk 0:00:41]} 30. Ke3 {[%clk 0:00:07]}  Qxb2 {[%clk 0:00:37]} 31. Rf1 {[%clk 0:00:07]}  Qa3+ {[%clk 0:00:28]} 32. Kf4 {[%clk 0:00:07]}  Qxa2 {[%clk 0:00:26]} 33. Ke5 {[%clk 0:00:06]}  Qb2+ {[%clk 0:00:21]} 34. Ke6 {[%clk 0:00:06]}  Qg2 {[%clk 0:00:20]} 35. Rff4 {[%clk 0:00:05]}  g5 {[%clk 0:00:14]} 36. Rg4 {[%clk 0:00:05]}  Qh3 {[%clk 0:00:13]} 37. d6 {[%clk 0:00:05]}  Qh6+ {[%clk 0:00:03]} 38. Kd5 {[%clk 0:00:05]}  Qg6 {[%clk 0:00:01]} 39. Re6 {[%clk 0:00:03]}  Qf5+ {[%clk 0:00:01]} 40. Re5 {[%clk 0:00:03]}  Qxg4 {[%clk 0:00:02]} 41. Kxc5 {[%clk 0:00:04]}  Qd7 {[%clk 0:00:02]} 42. Re7 {[%clk 0:00:04]}  Qc6+ {[%clk 0:00:02]} 43. Kd4 {[%clk 0:00:04]}  Qxd6+ {[%clk 0:00:03]} 0-1


[Site "https://www.chess.com"]

[Event "Titled Tuesday Blitz July 05 Early 2022"]
[White "Mkrtchian, Lilit"]
[Black "Terrieux, Kevin"]
[WhiteFideId "13300601"]
[BlackFideId "622591"]
[WhiteElo "2310"]
[BlackElo "2482"]
[Result "1-0"]
[Round "11"]
[TimeControl "180+1"]
[Date "2022.07.05"]
[WhiteClock "0:00:15"]
[BlackClock "0:00:24"]

1. e4 {[%clk 0:03:00]}  c5 {[%clk 0:02:58]} 2. Nf3 {[%clk 0:03:00]}  e6 {[%clk 0:02:59]} 3. d4 {[%clk 0:02:59]}  cxd4 {[%clk 0:02:59]} 4. Nxd4 {[%clk 0:03:00]}  Nf6 {[%clk 0:03:00]} 5. Nc3 {[%clk 0:03:00]}  Nc6 {[%clk 0:03:00]} 6. Nxc6 {[%clk 0:02:57]}  bxc6 {[%clk 0:03:00]} 7. e5 {[%clk 0:02:57]}  Nd5 {[%clk 0:03:00]} 8. Ne4 {[%clk 0:02:57]}  Qc7 {[%clk 0:03:00]} 9. f4 {[%clk 0:02:57]}  Qb6 {[%clk 0:03:00]} 10. c4 {[%clk 0:02:54]}  Bb4+ {[%clk 0:02:58]} 11. Ke2 {[%clk 0:02:54]}  f5 {[%clk 0:02:58]} 12. exf6 {[%clk 0:02:11]}  Nxf6 {[%clk 0:02:57]} 13. Be3 {[%clk 0:02:08]}  Qd8 {[%clk 0:02:57]} 14. Nd6+ {[%clk 0:02:06]}  Bxd6 {[%clk 0:02:56]} 15. Qxd6 {[%clk 0:02:05]}  c5 {[%clk 0:02:57]} 16. Qxc5 {[%clk 0:01:57]}  Bb7 {[%clk 0:02:56]} 17. Rd1 {[%clk 0:01:27]}  Rc8 {[%clk 0:02:51]} 18. Qb4 {[%clk 0:01:20]}  Ba8 {[%clk 0:02:32]} 19. Ke1 {[%clk 0:01:17]}  Kf7 {[%clk 0:02:22]} 20. Be2 {[%clk 0:01:09]}  Bxg2 {[%clk 0:02:13]} 21. Rg1 {[%clk 0:01:10]}  Be4 {[%clk 0:02:07]} 22. Bd4 {[%clk 0:01:04]}  Rf8 {[%clk 0:01:17]} 23. Bxf6 {[%clk 0:00:41]}  gxf6 {[%clk 0:01:17]} 24. Qd6 {[%clk 0:00:37]}  Rc7 {[%clk 0:01:06]} 25. Bh5+ {[%clk 0:00:18]}  Bg6 {[%clk 0:01:06]} 26. f5 {[%clk 0:00:18]}  Bxh5 {[%clk 0:00:39]} 27. fxe6+ {[%clk 0:00:17]}  Ke8 {[%clk 0:00:24]} 28. Rg7 {[%clk 0:00:15]} 1-0


[Site "https://www.chess.com"]

[Event "Titled Tuesday Blitz July 05 Early 2022"]
[White "Nakamura, Hikaru"]
[Black "So, Wesley"]
[WhiteFideId "2016192"]
[BlackFideId "5202213"]
[WhiteElo "2850"]
[BlackElo "2763"]
[Result "0-1"]
[Round "11"]
[TimeControl "180+1"]
[Date "2022.07.05"]
[WhiteClock "0:00:41"]
[BlackClock "0:00:53"]

1. Nf3 {[%clk 0:03:00]}  d5 {[%clk 0:02:59]} 2. d4 {[%clk 0:02:59]}  Nf6 {[%clk 0:02:58]} 3. Bf4 {[%clk 0:02:59]}  e6 {[%clk 0:02:52]} 4. e3 {[%clk 0:02:59]}  Bd6 {[%clk 0:02:53]} 5. Nbd2 {[%clk 0:02:54]}  Bxf4 {[%clk 0:02:49]} 6. exf4 {[%clk 0:02:54]}  b6 {[%clk 0:02:48]} 7. c3 {[%clk 0:02:52]}  O-O {[%clk 0:02:47]} 8. Bd3 {[%clk 0:02:49]}  c5 {[%clk 0:02:44]} 9. O-O {[%clk 0:02:44]}  Ba6 {[%clk 0:02:44]} 10. Bxa6 {[%clk 0:02:43]}  Nxa6 {[%clk 0:02:45]} 11. Qe2 {[%clk 0:02:44]}  Nb8 {[%clk 0:02:42]} 12. Rfd1 {[%clk 0:02:39]}  Qc7 {[%clk 0:02:42]} 13. g3 {[%clk 0:02:38]}  Nc6 {[%clk 0:02:41]} 14. Nb3 {[%clk 0:02:37]}  c4 {[%clk 0:02:37]} 15. Nbd2 {[%clk 0:02:36]}  b5 {[%clk 0:02:37]} 16. a3 {[%clk 0:02:32]}  a5 {[%clk 0:02:36]} 17. Ne5 {[%clk 0:02:31]}  b4 {[%clk 0:02:34]} 18. h4 {[%clk 0:02:19]}  h6 {[%clk 0:02:29]} 19. Kg2 {[%clk 0:02:11]}  bxc3 {[%clk 0:02:20]} 20. bxc3 {[%clk 0:02:12]}  Rab8 {[%clk 0:02:20]} 21. Rdb1 {[%clk 0:02:06]}  Ne7 {[%clk 0:02:20]} 22. g4 {[%clk 0:02:01]}  Nd7 {[%clk 0:01:59]} 23. h5 {[%clk 0:01:53]}  Rfe8 {[%clk 0:01:49]} 24. Ndf3 {[%clk 0:01:47]}  Nf8 {[%clk 0:01:38]} 25. g5 {[%clk 0:01:38]}  f6 {[%clk 0:01:33]} 26. gxf6 {[%clk 0:01:31]}  gxf6 {[%clk 0:01:34]} 27. Rg1 {[%clk 0:01:26]}  fxe5 {[%clk 0:01:17]} 28. Kh1+ {[%clk 0:01:16]}  Kh7 {[%clk 0:01:14]} 29. Nxe5 {[%clk 0:00:47]}  Nf5 {[%clk 0:01:14]} 30. Qg4 {[%clk 0:00:47]}  Qg7 {[%clk 0:01:13]} 31. Qh3 {[%clk 0:00:47]}  Qf6 {[%clk 0:01:12]} 32. Ng4 {[%clk 0:00:47]}  Qd8 {[%clk 0:01:02]} 33. Rg2 {[%clk 0:00:45]}  Nd7 {[%clk 0:00:57]} 34. Re1 {[%clk 0:00:41]}  Qh4 {[%clk 0:00:53]} 0-1


[Site "https://www.chess.com"]

[Event "Titled Tuesday Blitz July 05 Early 2022"]
[White "Niemann, Hans Moke"]
[Black "Svane, Rasmus"]
[WhiteFideId "2093596"]
[BlackFideId "4657101"]
[WhiteElo "2632"]
[BlackElo "2674"]
[Result "1-0"]
[Round "11"]
[TimeControl "180+1"]
[Date "2022.07.05"]
[WhiteClock "0:00:17"]
[BlackClock "0:00:10"]

1. d4 {[%clk 0:03:00]}  Nf6 {[%clk 0:03:00]} 2. Nc3 {[%clk 0:02:58]}  d5 {[%clk 0:03:00]} 3. Bf4 {[%clk 0:02:58]}  c5 {[%clk 0:03:00]} 4. e3 {[%clk 0:02:57]}  cxd4 {[%clk 0:02:59]} 5. exd4 {[%clk 0:02:58]}  a6 {[%clk 0:03:00]} 6. Nf3 {[%clk 0:02:57]}  Nc6 {[%clk 0:03:00]} 7. Ne5 {[%clk 0:02:57]}  Bd7 {[%clk 0:03:00]} 8. g4 {[%clk 0:02:57]}  e6 {[%clk 0:03:00]} 9. g5 {[%clk 0:02:57]}  Nxe5 {[%clk 0:02:39]} 10. Bxe5 {[%clk 0:02:56]}  Ne4 {[%clk 0:02:38]} 11. Nxe4 {[%clk 0:02:53]}  dxe4 {[%clk 0:02:39]} 12. Qd2 {[%clk 0:02:44]}  Bc6 {[%clk 0:02:33]} 13. Rg1 {[%clk 0:02:43]}  f6 {[%clk 0:02:28]} 14. gxf6 {[%clk 0:02:42]}  gxf6 {[%clk 0:02:29]} 15. Bf4 {[%clk 0:02:36]}  Qd5 {[%clk 0:02:26]} 16. c4 {[%clk 0:02:32]}  Qf5 {[%clk 0:02:25]} 17. O-O-O {[%clk 0:02:27]}  O-O-O {[%clk 0:02:21]} 18. Be3 {[%clk 0:02:14]}  Bd6 {[%clk 0:02:12]} 19. h4 {[%clk 0:02:01]}  Bc7 {[%clk 0:02:05]} 20. Rh1 {[%clk 0:01:52]}  Qh5 {[%clk 0:01:51]} 21. Be2 {[%clk 0:01:51]}  Qf7 {[%clk 0:01:50]} 22. Qc3 {[%clk 0:01:42]}  Kb8 {[%clk 0:01:48]} 23. b4 {[%clk 0:01:37]}  f5 {[%clk 0:01:45]} 24. d5 {[%clk 0:01:29]}  exd5 {[%clk 0:01:42]} 25. b5 {[%clk 0:01:29]}  axb5 {[%clk 0:01:33]} 26. cxb5 {[%clk 0:01:29]}  d4 {[%clk 0:01:22]} 27. Rxd4 {[%clk 0:01:20]}  Bd5 {[%clk 0:00:59]} 28. Ra4 {[%clk 0:01:09]}  b6 {[%clk 0:00:56]} 29. Kb1 {[%clk 0:00:40]}  f4 {[%clk 0:00:51]} 30. Bd4 {[%clk 0:00:36]}  Rhg8 {[%clk 0:00:50]} 31. Rc1 {[%clk 0:00:34]}  e3 {[%clk 0:00:40]} 32. Bc4 {[%clk 0:00:27]}  Rc8 {[%clk 0:00:33]} 33. Qa3 {[%clk 0:00:24]}  Qf5+ {[%clk 0:00:20]} 34. Bd3 {[%clk 0:00:19]}  Be4 {[%clk 0:00:19]} 35. Ra8+ {[%clk 0:00:18]}  Bxa8 {[%clk 0:00:16]} 36. Bxf5 {[%clk 0:00:19]}  Rcd8 {[%clk 0:00:11]} 37. Rxc7 {[%clk 0:00:18]}  Kxc7 {[%clk 0:00:10]} 38. Be5+ {[%clk 0:00:17]} 1-0


[Site "https://www.chess.com"]

[Event "Titled Tuesday Blitz July 05 Early 2022"]
[White "Prokofiev, Valentyn"]
[Black "Lawson, Eric"]
[WhiteFideId "14160161"]
[BlackFideId "2604116"]
[WhiteElo "2142"]
[BlackElo "2468"]
[Result "1-0"]
[Round "11"]
[TimeControl "180+1"]
[Date "2022.07.05"]
[WhiteClock "0:01:03"]
[BlackClock "0:01:11"]

1. d4 {[%clk 0:03:00]}  Nf6 {[%clk 0:02:58]} 2. Nf3 {[%clk 0:03:00]}  b6 {[%clk 0:02:58]} 3. c4 {[%clk 0:03:00]}  Bb7 {[%clk 0:02:59]} 4. e3 {[%clk 0:03:00]}  e6 {[%clk 0:02:59]} 5. Bd3 {[%clk 0:03:00]}  d5 {[%clk 0:02:57]} 6. b3 {[%clk 0:02:59]}  Be7 {[%clk 0:02:57]} 7. O-O {[%clk 0:02:59]}  O-O {[%clk 0:02:58]} 8. Bb2 {[%clk 0:03:00]}  a6 {[%clk 0:02:58]} 9. Nc3 {[%clk 0:03:00]}  Re8 {[%clk 0:02:57]} 10. Rc1 {[%clk 0:03:00]}  Nbd7 {[%clk 0:02:57]} 11. cxd5 {[%clk 0:02:53]}  exd5 {[%clk 0:02:56]} 12. Ne2 {[%clk 0:02:54]}  Bd6 {[%clk 0:02:54]} 13. Ng3 {[%clk 0:02:54]}  Ng4 {[%clk 0:02:43]} 14. Nf5 {[%clk 0:02:41]}  Bf8 {[%clk 0:02:37]} 15. h3 {[%clk 0:02:41]}  Ngf6 {[%clk 0:02:34]} 16. Ne5 {[%clk 0:02:41]}  g6 {[%clk 0:02:32]} 17. Ng3 {[%clk 0:02:41]}  Ne4 {[%clk 0:02:29]} 18. Qc2 {[%clk 0:02:02]}  Nxg3 {[%clk 0:02:20]} 19. fxg3 {[%clk 0:02:03]}  Nxe5 {[%clk 0:02:20]} 20. dxe5 {[%clk 0:02:04]}  c5 {[%clk 0:02:18]} 21. Qf2 {[%clk 0:01:49]}  Qd7 {[%clk 0:02:17]} 22. Qf6 {[%clk 0:01:46]}  Re6 {[%clk 0:02:13]} 23. Qf4 {[%clk 0:01:44]}  Bg7 {[%clk 0:02:12]} 24. e4 {[%clk 0:01:39]}  Rae8 {[%clk 0:01:49]} 25. exd5 {[%clk 0:01:36]}  Qxd5 {[%clk 0:01:48]} 26. Qxf7+ {[%clk 0:01:36]}  Kh8 {[%clk 0:01:48]} 27. Rf3 {[%clk 0:01:36]}  Rf8 {[%clk 0:01:43]} 28. Bc4 {[%clk 0:01:34]}  Qxf3 {[%clk 0:01:29]} 29. Qxf3 {[%clk 0:01:28]}  Rxf3 {[%clk 0:01:19]} 30. gxf3 {[%clk 0:01:26]}  Re7 {[%clk 0:01:19]} 31. Rd1 {[%clk 0:01:17]}  b5 {[%clk 0:01:13]} 32. Rd8+ {[%clk 0:01:16]}  Bf8 {[%clk 0:01:12]} 33. Rxf8+ {[%clk 0:01:14]}  Kg7 {[%clk 0:01:13]} 34. Rg8+ {[%clk 0:01:14]}  Kh6 {[%clk 0:01:13]} 35. Be2 {[%clk 0:01:04]}  Rxe5 {[%clk 0:01:11]} 36. Bxe5 {[%clk 0:01:03]} 1-0


[Site "https://www.chess.com"]

[Event "Titled Tuesday Blitz July 05 Early 2022"]
[White "Rosen, Eric"]
[Black "Perez Gormaz, Matias"]
[WhiteFideId "2032562"]
[BlackFideId "3406342"]
[WhiteElo "2362"]
[BlackElo "2341"]
[Result "1-0"]
[Round "11"]
[TimeControl "180+1"]
[Date "2022.07.05"]
[WhiteClock "0:00:01"]
[BlackClock "0:00:02"]

1. d4 {[%clk 0:02:54]}  Nf6 {[%clk 0:02:59]} 2. Bf4 {[%clk 0:02:53]}  d5 {[%clk 0:02:59]} 3. e3 {[%clk 0:02:54]}  e6 {[%clk 0:03:00]} 4. Nf3 {[%clk 0:02:54]}  c5 {[%clk 0:03:01]} 5. Nbd2 {[%clk 0:02:53]}  Nc6 {[%clk 0:03:01]} 6. c3 {[%clk 0:02:54]}  Nh5 {[%clk 0:03:02]} 7. Bg5 {[%clk 0:02:47]}  f6 {[%clk 0:02:55]} 8. Bh4 {[%clk 0:02:44]}  g6 {[%clk 0:02:54]} 9. Bb5 {[%clk 0:02:41]}  Bd7 {[%clk 0:02:50]} 10. O-O {[%clk 0:02:32]}  cxd4 {[%clk 0:02:34]} 11. exd4 {[%clk 0:02:18]}  Bd6 {[%clk 0:02:31]} 12. Re1 {[%clk 0:01:58]}  O-O {[%clk 0:02:30]} 13. c4 {[%clk 0:01:52]}  a6 {[%clk 0:02:28]} 14. Bxc6 {[%clk 0:01:46]}  bxc6 {[%clk 0:02:28]} 15. Rc1 {[%clk 0:01:41]}  Qb8 {[%clk 0:02:23]} 16. Qc2 {[%clk 0:01:19]}  a5 {[%clk 0:02:15]} 17. Bg3 {[%clk 0:01:19]}  Nxg3 {[%clk 0:02:11]} 18. hxg3 {[%clk 0:01:20]}  Ra7 {[%clk 0:02:11]} 19. Re2 {[%clk 0:01:12]}  Kg7 {[%clk 0:02:10]} 20. Nf1 {[%clk 0:01:12]}  a4 {[%clk 0:02:02]} 21. Ne3 {[%clk 0:01:12]}  Qb4 {[%clk 0:02:01]} 22. Ne1 {[%clk 0:01:07]}  Rb8 {[%clk 0:01:31]} 23. Nd3 {[%clk 0:01:07]}  Qa5 {[%clk 0:01:29]} 24. g4 {[%clk 0:01:00]}  Rab7 {[%clk 0:01:21]} 25. g3 {[%clk 0:00:59]}  Qa7 {[%clk 0:01:06]} 26. c5 {[%clk 0:00:54]}  Bc7 {[%clk 0:01:04]} 27. g5 {[%clk 0:00:45]}  fxg5 {[%clk 0:00:36]} 28. Ng4 {[%clk 0:00:45]}  Qa6 {[%clk 0:00:34]} 29. Qd2 {[%clk 0:00:32]}  h6 {[%clk 0:00:34]} 30. Kg2 {[%clk 0:00:28]}  h5 {[%clk 0:00:19]} 31. Nge5 {[%clk 0:00:26]}  Be8 {[%clk 0:00:19]} 32. Qxg5 {[%clk 0:00:23]}  Bd8 {[%clk 0:00:19]} 33. Qe3 {[%clk 0:00:21]}  Bf6 {[%clk 0:00:19]} 34. Rce1 {[%clk 0:00:20]}  Re7 {[%clk 0:00:19]} 35. Nf4 {[%clk 0:00:20]}  Rb4 {[%clk 0:00:15]} 36. Qc3 {[%clk 0:00:16]}  Qb7 {[%clk 0:00:13]} 37. Nfd3 {[%clk 0:00:08]}  Rb5 {[%clk 0:00:12]} 38. Qd2 {[%clk 0:00:08]}  Qa6 {[%clk 0:00:05]} 39. Qe3 {[%clk 0:00:08]}  Qb7 {[%clk 0:00:05]} 40. Nf3 {[%clk 0:00:08]}  Bf7 {[%clk 0:00:04]} 41. Qd2 {[%clk 0:00:05]}  Bg8 {[%clk 0:00:04]} 42. Nde5 {[%clk 0:00:05]}  Qc8 {[%clk 0:00:03]} 43. Qc2 {[%clk 0:00:05]}  Bh7 {[%clk 0:00:02]} 44. Qxa4 {[%clk 0:00:04]}  Qb7 {[%clk 0:00:02]} 45. Qa3 {[%clk 0:00:05]}  Re8 {[%clk 0:00:02]} 46. b3 {[%clk 0:00:05]}  Ra8 {[%clk 0:00:02]} 47. Qc1 {[%clk 0:00:05]}  Rba5 {[%clk 0:00:03]} 48. Qb1 {[%clk 0:00:03]}  Ra3 {[%clk 0:00:03]} 49. Qc2 {[%clk 0:00:02]}  Qa6 {[%clk 0:00:04]} 50. Qd2 {[%clk 0:00:01]}  Bg8 {[%clk 0:00:04]} 51. Qf4 {[%clk 0:00:02]}  Rxa2 {[%clk 0:00:03]} 52. Nd7 {[%clk 0:00:02]}  Be7 {[%clk 0:00:02]} 53. Re3 {[%clk 0:00:01]} 1-0


[Site "https://www.chess.com"]